Workbook

Sheet MGR 30%
A1: Effective 04/08/2025 | E1: VILLAS OF LEON VALLEY
A2: State Issued Rent/Income Limits | E2: 2025 MANAGERS CERTIFICATION
A3: on 04/01/2025 | H3: 0.3 | L3: INITIAL CERTIFICATION
A4: Section 8 | C4: Yes | E4: No | L4: ANNUAL RECERTIFICATION
A5: Building | G5: Apt. Size
A6: Apartment | G6: No. Of Tenants | L6: TRANSFER DATE
A7: Tenant Name | G7: Move-In Date | L7: From Unit #
A10: INCOME QUALIFICATION
A12: 1. Total Household Income
A14: CIRCLE MAXIMUM ALLOWABLE INCOME FOR HOUSEHOLD SIZE
A15: # of Tenants | C15: 1 | E15: 2 | G15: 3 | H15: 4 | J15: 5
A16: Certification | C16: 20310 | E16: 23190 | G16: 26100 | H16: 28980 | J16: 31320
G21: RENT QUALIFICATIONS
A23: 2a. Base Rent charged Per Lease | I23: 2b. If Section 8, tenant portion of rent
A25: MAXIMUM ALLOWABLE RENT: | H25: CURRENT RENT SCHEDULE:
A26: LIHTC RENTAL RATES | M26: UA Effective Date:
D27: Max | E27: U.A. | F27: Net | H27: Approved net rent: | M27: 2024-12-25
A28: 1 Bedroom | D28: 543 | E28: 72 | F28: =+D28-E28 -> 471 | H28: 471 | L28: =7+3+6+15+8+8 -> 47 | M28: HUD Utility Schedule Model
L29: =10+5+10+23+14+8 -> 70
G31: LEASE TERM
A33: 3. On Initial Certification, lease term is for 12 months, unless prior approval from Regional Supervisor
A35: 4. New Lease Term | G35: TO
G38: STUDENT STATUS
A40: 5. Are all of the household members full-time students (Yes/No)?
A42: 6. Number of full-time students in the household?
A44: 7. Number of part-time students in the household?
A46: 8. If you answered yes to #5, does this household qualify under
A47: the student Status Provision (Yes/No)?
A50: Management has completed the required procedures to verify eligibility of the above household in compliance with Section 42 of the Internal Revenue code and minimum requirements as set forth in the management agreement. Furthermore, it is management's belief the information used in verifying eligibility is true and correct and to the best of their knowledge, believes the above household is qualified for the Section 42 Tax Credit Housing Program.
A56: File Preparer's Signature | F56: Manager's Final Signature | L56: Compliance Date Certified
A60: Compliance Preliminary Approval | F60: Compliance Final Paperwork Approval | L60: Compliance File Audit Approval

Sheet MGR 40%
A1: =+'MGR 30%'!A1:D1 -> Effective 04/08/2025 | E1: VILLAS OF LEON VALLEY
A2: State Issued Rent/Income Limits | E2: =+'MGR 30%'!E2:L2 -> 2025 MANAGERS CERTIFICATION
A3: =+'MGR 30%'!A3 -> on 04/01/2025 | H3: 0.4 | L3: INITIAL CERTIFICATION
A4: Section 8 | C4: Yes | E4: No | L4: ANNUAL RECERTIFICATION
A5: Building | G5: Apt. Size
A6: Apartment | G6: No. Of Tenants | L6: TRANSFER DATE
A7: Tenant Name | G7: Move-In Date | L7: From Unit #
A10: INCOME QUALIFICATION
A12: 1. Total Household Income
A14: CIRCLE MAXIMUM ALLOWABLE INCOME FOR HOUSEHOLD SIZE
A15: # of Tenants | C15: 1 | E15: 2 | G15: 3 | H15: 4 | J15: 5
A16: Certification | C16: 27080 | E16: 30920 | G16: 34800 | H16: 38640 | J16: 41760
G21: RENT QUALIFICATIONS
A23: 2a. Base Rent charged Per Lease | I23: 2b. If Section 8, tenant portion of rent | N23: N/A
A25: MAXIMUM ALLOWABLE RENT: | H25: CURRENT RENT SCHEDULE:
A26: LIHTC RENTAL RATES | M26: UA Effective Date:
D27: Max | E27: U.A. | F27: Net | H27: Approved net rent: | M27: =+'MGR 30%'!M27:O27 -> 2024-12-25
A28: 1 Bedroom | D28: 725 | E28: 72 | F28: =+D28-E28 -> 653 | H28: 653 | M28: HUD Utility Schedule Model
G31: LEASE TERM
A33: 3. On Initial Certification, lease term is for 12 months, unless prior approval from Regional Supervisor
A35: 4. New Lease Term | G35: TO
G38: STUDENT STATUS
A40: 5. Are all of the household members full-time students (Yes/No)?
A42: 6. Number of full-time students in the household?
A44: 7. Number of part-time students in the household?
A46: 8. If you answered yes to #5, does this household qualify under
A47: the student Status Provision (Yes/No)?
A50: Management has completed the required procedures to verify eligibility of the above household in compliance with Section 42 of the Internal Revenue code and minimum requirements as set forth in the management agreement. Furthermore, it is management's belief the information used in verifying eligibility is true and correct and to the best of their knowledge, believes the above household is qualified for the Section 42 Tax Credit Housing Program.
A56: File Preparer's Signature | F56: Manager's Final Signature | L56: Compliance Date Certified
A60: Compliance Preliminary Approval | F60: Compliance Final Paperwork Approval | L60: Compliance File Audit Approval

Sheet MGR 50%
A1: =+'MGR 30%'!A1:D1 -> Effective 04/08/2025 | E1: VILLAS OF LEON VALLEY
A2: State Issued Rent/Income Limits | E2: =+'MGR 30%'!E2:L2 -> 2025 MANAGERS CERTIFICATION
A3: =+'MGR 30%'!A3 -> on 04/01/2025 | H3: 0.5 | L3: INITIAL CERTIFICATION
A4: Section 8 | C4: Yes | E4: No | L4: ANNUAL RECERTIFICATION
A5: Building | G5: Apt. Size
A6: Apartment | G6: No. Of Tenants | L6: TRANSFER DATE
A7: Tenant Name | G7: Move-In Date | L7: From Unit #
A10: INCOME QUALIFICATION
A12: 1. Total Household Income
A14: CIRCLE MAXIMUM ALLOWABLE INCOME FOR HOUSEHOLD SIZE
A15: # of Tenants | C15: 1 | E15: 2 | G15: 3 | H15: 4 | J15: 5
A16: Certification | C16: 33850 | E16: 38650 | G16: 43500 | H16: 48300 | J16: 52200
G21: RENT QUALIFICATIONS
A23: 2a. Base Rent charged Per Lease | I23: 2b. If Section 8, tenant portion of rent
A25: MAXIMUM ALLOWABLE RENT: | H25: CURRENT RENT SCHEDULE:
A26: LIHTC RENTAL RATES | M26: UA Effective Date:
D27: Max | E27: U.A. | F27: Net | H27: Approved net rent: | M27: =+'MGR 30%'!M27:O27 -> 2024-12-25
A28: 1 Bedroom | D28: 906 | E28: 72 | F28: =+D28-E28 -> 834 | H28: 834 | M28: HUD Utility Schedule Model
G31: LEASE TERM
A33: 3. On Initial Certification, lease term is for 12 months, unless prior approval from Regional Supervisor
A35: 4. New Lease Term | G35: TO
G38: STUDENT STATUS
A40: 5. Are all of the household members full-time students (Yes/No)?
A42: 6. Number of full-time students in the household?
A44: 7. Number of part-time students in the household?
A46: 8. If you answered yes to #5, does this household qualify under
A47: the student Status Provision (Yes/No)?
A50: Management has completed the required procedures to verify eligibility of the above household in compliance with Section 42 of the Internal Revenue code and minimum requirements as set forth in the management agreement. Furthermore, it is management's belief the information used in verifying eligibility is true and correct and to the best of their knowledge, believes the above household is qualified for the Section 42 Tax Credit Housing Program.
A56: File Preparer's Signature | F56: Manager's Final Signature | L56: Compliance Date Certified
A60: Compliance Preliminary Approval | F60: Compliance Final Paperwork Approval | L60: Compliance File Audit Approval

Sheet MGR 60%
A1: =+'MGR 30%'!A1:D1 -> Effective 04/08/2025 | E1: VILLAS OF LEON VALLEY
A2: State Issued Rent/Income Limits | E2: =+'MGR 30%'!E2:L2 -> 2025 MANAGERS CERTIFICATION
A3: =+'MGR 30%'!A3 -> on 04/01/2025 | H3: 0.6 | L3: INITIAL CERTIFICATION
A4: Section 8 | C4: Yes | E4: No | L4: ANNUAL RECERTIFICATION
A5: Building | G5: Apt. Size
A6: Apartment | G6: No. Of Tenants | L6: TRANSFER DATE
A7: Tenant Name | G7: Move-In Date | L7: From Unit #
A10: INCOME QUALIFICATION
A12: 1. Total Household Income
A14: CIRCLE MAXIMUM ALLOWABLE INCOME FOR HOUSEHOLD SIZE
A15: # of Tenants | C15: 1 | E15: 2 | G15: 3 | H15: 4 | J15: 5
A16: Initial Certification | C16: 40620 | E16: 46380 | G16: 52200 | H16: 57960 | J16: 62640
A18: Recertification | C18: =SUM(C16*140%) -> 56868 | E18: =SUM(E16*140%) -> 64932 | G18: =SUM(G16*140%) -> 73080 | H18: =SUM(H16*140%) -> 81144 | J18: =SUM(J16*140%) -> 87696
G21: RENT QUALIFICATIONS
A23: 2a. Base Rent charged Per Lease | I23: 2b. If Section 8, tenant portion of rent
A25: MAXIMUM ALLOWABLE RENT: | H25: CURRENT RENT SCHEDULE:
A26: LIHTC RENTAL RATES | M26: UA Effective Date:
D27: Max | E27: U.A. | F27: Net | H27: Approved net rent: | M27: =+'MGR 30%'!M27:O27 -> 2024-12-25
A28: 1 Bedroom | D28: 1087 | E28: 72 | F28: =+D28-E28 -> 1015 | H28: 924 | M28: HUD Utility Schedule Model
A29: 2 Bedroom | D29: 1305 | E29: 94 | F29: =SUM(D29-E29) -> 1211 | H29: 1175
G31: LEASE TERM
A33: 3. On Initial Certification, lease term is for 12 months, unless prior approval from Regional Supervisor
A35: 4. New Lease Term | G35: TO
G38: STUDENT STATUS
A40: 5. Are all of the household members full-time students (Yes/No)?
A42: 6. Number of full-time students in the household?
A44: 7. Number of part-time students in the household?
A46: 8. If you answered yes to #5, does this household qualify under
A47: the student Status Provision (Yes/No)?
A50: Management has completed the required procedures to verify eligibility of the above household in compliance with Section 42 of the Internal Revenue code and minimum requirements as set forth in the management agreement. Furthermore, it is management's belief the information used in verifying eligibility is true and correct and to the best of their knowledge, believes the above household is qualified for the Section 42 Tax Credit Housing Program.
A56: File Preparer's Signature | F56: Manager's Final Signature | L56: Compliance Date Certified
A60: Compliance Preliminary Approval | F60: Compliance Final Paperwork Approval | L60: Compliance File Audit Approval

Sheet MKT CERT
A1: VILLAS OF LEON VALLEY
A2: 2025 MANAGERS CERTIFICATION
A3: Effective 04/08/2025
A4: MARKET RATE MANAGER CERTIFICATION
A6: Section 8 | C6: Yes | E6: No | G6: Apt. Size | L6: INITIAL CERTIFICATION
A7: Building | G7: No. Of Tenants | L7: RENEWAL RECERTIFICATION
A8: Apartment | G8: Move-In Date | L8: TRANSFER DATE
A9: Tenant Name | L9: Transfer Unit #
A13: INCOME QUALIFICATION
A15: Total Household Income
A19: RENT
A21: 2a. Base Rent charged Per Lease | I21: 2b. If section 8, tenant portion of rent
A23: 1 Bedroom | F23: 1150
A24: 2 Bedroom | F24: 1290
A28: LEASE TERM
A30: 3. On Certification, lease term is for 12 months, uless prior approval from Regional Supervisor
A32: 4. New Lease Term | H32: to
A38: STUDENT STATUS
A40: 5. Are all of the household members full-time students (Yes/No)?
A42: 6. Number of full-time students in the household?
A44: 7. Number of part-time students in the household?
A51: Property Manager's Signature | G51: Compliance Preliminary Approval | L51: Compliance Final Paperwork Approval
A54: Manager's Final Approval
